fUSD/lending_fUSD_20260413
["ID","MTS","AMOUNT","RATE_DAILY","PERIOD"]
[420370075,1776041589769,-1088.75,0.00039178,10]
[420370076,1776041589785,-2369.56,0.00039178,15]
[420370077,1776041589795,-500.0,0.00039178,15]
[420370078,1776041589810,-354.33499773,0.00039178,15]
[420370079,1776041589832,-2576.55,0.00039178,15]
[420370080,1776041589852,-710.49,0.00039178,15]
[420370081,1776041589862,-500.0,0.00039178,15]
[420370082,1776041589874,-500.0,0.00039178,15]
[420370083,1776041589883,-500.0,0.00039178,15]
[420370084,1776041589900,-551.01,0.00039178,15]
[420370085,1776041589914,-500.0,0.00039178,15]
[420370086,1776041589923,-530.19,0.00039178,15]
[420370087,1776041589938,-500.0,0.00039178,15]
[420370088,1776041589953,-500.0,0.00039178,15]
[420370089,1776041589976,-1050.9,0.00039178,2]
[420370090,1776041589986,-777.27,0.00039178,15]
[420370091,1776041590008,-1688.24,0.00039178,15]
[420370092,1776041590019,-500.0,0.00039178,15]
[420370093,1776041590030,-500.0,0.00039178,15]
[420370094,1776041590056,-1238.65,0.00039178,15]
[420370095,1776041590067,-838.3,0.00039178,15]
[420370096,1776041590085,-3632.99,0.00039178,15]
[420370097,1776041590098,-519.68,0.00039178,15]
[420370098,1776041590109,-500.0,0.00039178,15]
[420370099,1776041590126,-1404.43,0.00039178,15]
[420370100,1776041590142,-500.0,0.00039178,2]
[420370101,1776041590165,-1416.03,0.00039178,15]
[420370102,1776041590180,-500.0,0.00039178,15]
[420370103,1776041590193,-500.0,0.00039178,15]
[420370104,1776041590208,-500.0,0.00039178,15]
[420370105,1776041590224,-500.0,0.00039178,15]
[420370106,1776041590234,-2663.72,0.00039178,15]
[420370107,1776041590247,-500.0,0.00039178,15]
[420370108,1776041590261,-500.0,0.00039178,15]
[420370109,1776041590295,-1941.75,0.00039178,15]
[420370110,1776041590309,-500.0,0.00039178,15]
[420370111,1776041590319,-500.0,0.00039178,15]
[420370112,1776041590333,-1140.07,0.00039178,15]
[420370113,1776041590342,-500.0,0.00039178,15]
[420370114,1776041590355,-2327.16,0.00039178,15]
[420370115,1776041590364,-1143.2,0.00039178,15]
[420370116,1776041590381,-691.76,0.00039178,15]
[420370117,1776041590395,-2867.96,0.00039178,15]
[420370118,1776041590404,-500.0,0.00039178,15]
[420370119,1776041590415,-502.71,0.00039178,15]
[420370120,1776041590430,-668.39,0.00039178,15]
[420370121,1776041590442,-500.0,0.00039178,2]
[420370122,1776041590463,-825.64,0.00039178,15]
[420370123,1776041590476,-772.87,0.00039178,15]
[420370124,1776041590485,-500.0,0.00039178,15]
[420370125,1776041590503,-2035.28,0.00039178,15]
[420370126,1776041590517,-2804.52,0.00039178,15]
[420370127,1776041590527,-500.0,0.00039178,15]
[420370128,1776041590538,-500.0,0.00039178,120]
[420370129,1776041590560,-1528.0,0.00039178,30]
[420370130,1776041590569,-1000.0,0.000392,120]
[420370131,1776041590581,-251.09,0.00039243,120]
[420370132,1776041590594,-1142.41,0.00039243,120]
[420370133,1776041590607,-1060.93,0.00039243,120]
[420370134,1776041590616,-1722.898,0.00039329,54]
[420370135,1776041590627,-211.84321949,0.00039424,120]
[420370136,1776041590645,-5828.66672179,0.00039451,15]
[420370137,1776041590656,-5828.66672178,0.00039451,15]
[420370138,1776041590666,-254.46166122,0.00039451,7]
[420370139,1776041590679,-500.0,0.00039452,15]
[420370140,1776041590694,-500.0,0.00039452,15]
[420370141,1776041590717,-601.71892483,0.00039452,15]
[420370142,1776041590726,-500.0,0.00039452,15]
[420370143,1776041590739,-500.0,0.00039452,15]
[420370144,1776041590754,-1663.8,0.00039452,15]
[420370145,1776041590763,-391.03133799,0.00039452,15]
[420370146,1776041590775,-500.0,0.00039452,15]
[420370147,1776041590785,-500.0,0.00039452,15]
[420370148,1776041590802,-637.63384336,0.00039452,15]
[420370149,1776041590812,-550.79,0.00039452,15]
[420370150,1776041590833,-500.0,0.00039452,15]
[420370151,1776041590844,-500.0,0.00039452,15]
[420370152,1776041590855,-500.0,0.00039452,15]
[420370153,1776041590871,-500.0,0.00039452,15]
[420370154,1776041590888,-407.75448349,0.00039452,15]
[420370155,1776041590897,-500.0,0.00039452,15]
[420370156,1776041590907,-697.6,0.00039452,15]
[420370157,1776041590921,-500.0,0.00039452,15]
[420370158,1776041590938,-500.0,0.00039452,15]
[420370159,1776041590947,-500.0,0.00039452,15]
[420370160,1776041590956,-500.0,0.00039452,15]
[420370161,1776041590972,-500.0,0.00039452,15]
[420370162,1776041590982,-947.62,0.00039452,15]
[420370163,1776041590991,-500.0,0.00039452,15]
[420370164,1776041591005,-500.0,0.00039452,15]
[420370165,1776041591015,-785.07,0.00039452,15]
[420370166,1776041591024,-500.0,0.00039452,15]
[420370167,1776041591033,-1045.15,0.00039452,15]
[420370168,1776041591044,-500.0,0.00039452,15]
[420370169,1776041591060,-500.0,0.00039452,15]
[420370170,1776041591070,-189.11468101,0.00039452,15]
[420370171,1776041591079,-500.0,0.00039452,15]
[420370172,1776041591094,-500.0,0.00039452,15]
[420370173,1776041591104,-1634.13,0.00039452,7]
[420370174,1776041591119,-500.0,0.00039452,15]
[420370175,1776041591128,-500.0,0.00039452,7]
[420370176,1776041591149,-500.0,0.00039452,15]
[420370177,1776041591161,-500.0,0.00039452,15]
[420370178,1776041591173,-628.08,0.00039452,15]
[420370179,1776041591185,-500.0,0.00039452,15]
[420370180,1776041591196,-710.03,0.00039452,15]
[420370181,1776041591217,-849.78,0.00039452,15]
[420370182,1776041591227,-158.30752649,0.00039452,15]
[420370183,1776041591236,-316.12436348,0.00039452,15]
[420370184,1776041591256,-500.0,0.00039452,15]
[420370185,1776041591266,-1943.24,0.00039452,15]
[420370186,1776041591277,-500.0,0.00039452,15]
[420370187,1776041591300,-500.0,0.00039452,15]
[420370188,1776041591309,-500.0,0.00039452,15]
[420370189,1776041591321,-500.0,0.00039452,15]
[420370190,1776041591339,-1068.31,0.00039452,15]
[420370191,1776041591348,-601.67,0.00039452,15]
[420370192,1776041591362,-500.0,0.00039452,15]
[420370193,1776041591384,-500.0,0.00039452,15]
[420370194,1776041591393,-763.96,0.00039452,15]
[420370195,1776041591405,-500.0,0.00039452,15]
[420370196,1776041591429,-647.78,0.00039452,15]
[420370197,1776041591440,-500.0,0.00039452,15]
[420370198,1776041591449,-1381.7,0.00039452,15]
[420370199,1776041591477,-500.0,0.00039452,15]
[420370200,1776041591486,-792.32,0.00039452,15]
[420370201,1776041591505,-527.39,0.00039452,15]
[420370202,1776041591536,-500.0,0.00039452,15]
[420370203,1776041591545,-500.0,0.00039452,15]
[420370204,1776041591555,-500.0,0.00039452,15]
[420370205,1776041591584,-1152.6,0.00039452,15]
[420370206,1776041591593,-500.0,0.00039452,15]
[420370207,1776041591622,-420.13959192,0.00039452,15]
[420370208,1776041591634,-500.0,0.00039452,15]
[420370209,1776041591646,-500.0,0.00039452,15]
[420370210,1776041591667,-969.29,0.00039452,15]
[420370211,1776041591683,-500.0,0.00039452,15]
[420370212,1776041591694,-586.15863356,0.00039452,15]
[420370213,1776041591714,-1217.57,0.00039452,15]
[420370214,1776041591727,-1867.56,0.00039452,15]
[420370215,1776041591738,-500.0,0.00039452,15]
[420370216,1776041591768,-621.51,0.00039452,15]
[420370217,1776041591778,-500.0,0.00039452,15]
[420370218,1776041591812,-582.94,0.00039452,15]
[420370219,1776041591822,-500.0,0.00039452,15]
[420370220,1776041591844,-500.0,0.00039452,15]
[420370221,1776041592050,-518.35946254,0.00039452,15]
[420370222,1776041592088,-1105.13,0.00039452,15]
[420370223,1776041592099,-772.66,0.00039452,15]
[420370224,1776041592126,-500.0,0.00039452,15]
[420370225,1776041592137,-500.0,0.00039452,15]
[420370226,1776041592162,-500.0,0.00039452,15]
[420370227,1776041592193,-500.0,0.00039452,15]
[420370228,1776041592221,-655.74,0.00039452,15]
[420370229,1776041592259,-500.0,0.00039452,15]
[420370230,1776041592287,-1081.95,0.00039452,15]
[420370231,1776041592323,-500.0,0.00039452,15]
[420370232,1776041592354,-500.0,0.00039452,15]
[420370233,1776041592364,-500.0,0.00039452,15]
[420370234,1776041592404,-500.0,0.00039452,15]
[420370235,1776041592413,-953.1,0.00039452,15]
[420370236,1776041592423,-500.0,0.00039452,15]
[420370237,1776041592442,-500.0,0.00039452,15]
[420370238,1776041592462,-627.16,0.00039452,15]
[420370239,1776041592471,-2804.38,0.00039452,15]
[420370240,1776041592491,-1274.7,0.00039452,15]
[420370241,1776041592502,-500.0,0.00039452,15]
[420370242,1776041592515,-500.0,0.00039452,15]
[420370243,1776041592533,-500.0,0.00039452,15]
[420370244,1776041592545,-2514.55,0.00039452,15]
[420370245,1776041592558,-719.78,0.00039452,15]
[420370246,1776041592568,-859.84,0.00039452,2]
[420370247,1776041592584,-552.98,0.00039452,15]
[420370248,1776041592594,-914.83,0.00039452,15]
[420370249,1776041592607,-500.0,0.00039452,15]
[420370250,1776041592619,-500.0,0.00039452,15]
[420370251,1776041592630,-500.0,0.00039452,15]
[420370252,1776041592643,-710.68,0.00039452,15]
[420370253,1776041592652,-500.0,0.00039452,15]
[420370254,1776041592662,-500.0,0.00039452,15]
[420370255,1776041592687,-849.06,0.00039452,7]
[420370256,1776041592697,-1369.55,0.00039452,15]
[420370257,1776041592707,-500.0,0.00039452,15]
[420370258,1776041592723,-1237.88,0.00039452,15]
[420370259,1776041592734,-563.87,0.00039452,15]
[420370260,1776041592743,-500.0,0.00039452,15]
[420370261,1776041592754,-788.01,0.00039452,15]
[420370262,1776041592778,-500.0,0.00039452,15]
[420370263,1776041592788,-568.15,0.00039452,15]
[420370264,1776041592801,-500.0,0.00039452,15]
[420370265,1776041592830,-500.0,0.00039452,15]
[420370266,1776041592842,-500.0,0.00039452,15]
[420370267,1776041592855,-3366.71,0.00039452,15]
[420370268,1776041592870,-923.98,0.00039452,15]
[420370269,1776041592883,-2088.77,0.00039452,15]
[420370270,1776041592898,-549.15,0.00039452,15]
[420370271,1776041592912,-500.0,0.00039452,15]
[420370272,1776041592937,-500.0,0.00039452,15]
[420370273,1776041592965,-500.0,0.00039452,15]
[420370274,1776041592974,-500.0,0.00039452,15]
[420370275,1776041592990,-1268.03,0.00039452,15]
[420370276,1776041593001,-500.0,0.00039452,15]
[420370277,1776041593013,-500.0,0.00039452,15]
[420370278,1776041593023,-558.39,0.00039452,15]
[420370279,1776041593054,-500.0,0.00039452,15]
[420370280,1776041593065,-500.0,0.00039452,15]
[420370281,1776041593084,-1218.49,0.00039452,15]
[420370282,1776041593094,-4311.22,0.00039452,15]
[420370283,1776041593103,-788.69,0.00039452,15]
[420370284,1776041593122,-707.14,0.00039452,15]
[420370285,1776041593132,-500.0,0.00039452,15]
[420370286,1776041593143,-500.0,0.00039452,15]
[420370287,1776041593158,-683.01,0.00039452,15]
[420370288,1776041593174,-654.55,0.00039452,15]
[420370289,1776041593185,-500.0,0.00039452,15]
[420370290,1776041593211,-1877.62,0.00039452,15]
[420370291,1776041593228,-500.0,0.00039452,15]
[420370292,1776041593237,-1985.43,0.00039452,15]
[420370293,1776041593255,-500.0,0.00039452,12]
[420370294,1776041593272,-1299.61,0.00039452,15]
[420370295,1776041593282,-1450.56,0.00039452,15]
[420370296,1776041593297,-500.0,0.00039452,15]
[420370297,1776041593316,-919.99,0.00039452,15]
[420370298,1776041593326,-500.0,0.00039452,15]
[420370299,1776041593341,-500.0,0.00039452,15]
[420370300,1776041593363,-500.0,0.00039452,15]
[420370301,1776041593374,-2075.21,0.00039452,15]
[420370302,1776041593390,-500.0,0.00039452,15]
[420370303,1776041593405,-500.0,0.00039452,15]
[420370304,1776041593436,-513.31962026,0.00039452,15]
[420370305,1776041593446,-534.23,0.00039452,15]
[420370306,1776041593462,-500.0,0.00039452,15]
[420370307,1776041593483,-1289.28,0.00039452,15]
[420370308,1776041593493,-503.66131158,0.00039452,15]
[420370309,1776041593505,-500.0,0.00039452,15]
[420370310,1776041593524,-500.0,0.00039452,15]
[420370311,1776041593534,-500.0,0.00039452,15]
[420370312,1776041593545,-1427.37,0.00039452,15]
[420370313,1776041593569,-1530.82,0.00039452,15]
[420370314,1776041593579,-500.0,0.00039452,15]
[420370315,1776041593607,-436.23343373,0.00039452,15]
[420370316,1776041593619,-2046.09,0.00039452,15]
[420370317,1776041593640,-500.0,0.00039452,15]
[420370318,1776041593675,-500.0,0.00039452,15]
[420370319,1776041593697,-2529.22,0.00039452,15]
[420370320,1776041593708,-745.28,0.00039452,15]
[420370321,1776041593722,-808.37,0.00039452,15]
[420370322,1776041593738,-2416.53,0.00039452,15]
[420370323,1776041593750,-906.56,0.00039452,15]
[420370324,1776041593763,-523.37,0.00039452,15]
[420370325,1776041593786,-500.0,0.00039452,15]
[420370326,1776041593795,-504.19,0.00039452,15]
[420370327,1776041593805,-500.0,0.00039452,15]
[420370328,1776041593821,-500.0,0.00039452,15]
[420370329,1776041593830,-500.0,0.00039452,15]
[420370330,1776041593839,-500.0,0.00039452,15]
[420370331,1776041593853,-500.0,0.00039452,15]
[420370332,1776041593865,-2898.73,0.00039452,15]
[420370333,1776041593874,-500.0,0.00039452,15]
[420370334,1776041593884,-2221.27,0.00039452,15]
[420370335,1776041593902,-500.0,0.00039452,15]
[420370336,1776041593912,-1447.93,0.00039452,15]
[420370337,1776041593925,-819.82,0.00039452,15]
[420370338,1776041593938,-500.0,0.00039452,15]
[420370339,1776041593949,-500.0,0.00039452,15]
[420370340,1776041593962,-739.29,0.00039452,15]
[420370341,1776041593984,-500.0,0.00039452,15]
[420370342,1776041594000,-1481.69,0.00039452,15]
[420370343,1776041594030,-500.0,0.00039452,15]
[420370344,1776041594060,-500.0,0.00039452,15]
[420370345,1776041594098,-500.0,0.00039452,15]
[420370346,1776041594132,-1386.95,0.00039452,15]
[420370347,1776041594147,-504.87,0.00039452,15]
[420370348,1776041594180,-500.0,0.00039452,15]
[420370349,1776041594190,-1307.69,0.00039452,15]
[420370350,1776041594199,-500.0,0.00039452,15]
[420370351,1776041594223,-632.93,0.00039452,15]
[420370352,1776041594250,-500.0,0.00039452,15]
[420370353,1776041594260,-500.0,0.00039452,15]
[420370354,1776041594282,-2461.87,0.00039452,15]
[420370355,1776041594293,-500.0,0.00039452,14]
[420370356,1776041594305,-500.0,0.00039452,5]
[420370357,1776041594318,-644.51,0.00039452,15]
[420370358,1776041594327,-1333.0,0.00039452,15]
[420370359,1776041594337,-1064.34,0.00039452,15]
[420370360,1776041594352,-1670.47,0.00039452,15]
[420370361,1776041594364,-761.34,0.00039452,15]
[420370362,1776041594374,-1111.33,0.00039452,15]
[420370363,1776041594385,-500.0,0.00039452,15]
[420370364,1776041594403,-594.46162321,0.00039452,15]
[420370365,1776041594413,-808.18,0.00039452,15]
[420370366,1776041594422,-548.68,0.00039452,15]
[420370367,1776041594447,-921.66,0.00039452,15]
[420370368,1776041594457,-500.0,0.00039452,15]
[420370369,1776041594469,-345.62608159,0.00039452,15]
[420370370,1776041594496,-500.0,0.00039452,15]
[420370371,1776041594506,-500.0,0.00039452,15]
[420370372,1776041594521,-1561.09,0.00039452,15]
[420370373,1776041594540,-500.0,0.00039452,15]
[420370374,1776041594550,-1822.44,0.00039452,15]
[420370375,1776041594562,-500.0,0.00039452,15]
[420370376,1776041594590,-500.0,0.00039452,15]
[420370377,1776041594599,-887.2,0.00039452,15]
[420370378,1776041594611,-810.27,0.00039452,10]
[420370379,1776041594626,-1212.99,0.00039452,15]
[420370380,1776041594641,-1687.08,0.00039452,15]
[420370381,1776041594653,-836.17,0.00039452,15]
[420370382,1776041594665,-500.0,0.00039452,15]
[420370383,1776041594682,-616.32,0.00039452,15]
[420370384,1776041594695,-500.0,0.00039452,15]
[420370385,1776041594709,-500.0,0.00039452,15]
[420370386,1776041594719,-500.0,0.00039452,15]
[420370387,1776041594728,-500.0,0.00039452,15]
[420370388,1776041594751,-500.0,0.00039452,15]
[420370389,1776041594761,-990.96,0.00039452,15]
[420370390,1776041594774,-500.0,0.00039452,15]
[420370391,1776041594792,-500.0,0.00039452,15]
[420370392,1776041594802,-1300.76,0.00039452,15]
[420370393,1776041594820,-636.59,0.00039452,15]
[420370394,1776041594832,-545.86635175,0.00039452,15]
[420370395,1776041594842,-516.51610717,0.00039452,15]
[420370396,1776041594860,-1007.92,0.00039452,15]
[420370397,1776041594870,-500.0,0.00039452,15]
[420370398,1776041594888,-500.0,0.00039452,15]
[420370399,1776041594900,-1138.59,0.00039452,15]
[420370400,1776041594910,-1730.4,0.00039452,15]
[420370401,1776041594922,-1000.31,0.00039452,15]
[420370402,1776041594940,-903.84,0.00039452,15]
[420370403,1776041594949,-619.67,0.00039452,15]
[420370404,1776041594959,-500.0,0.00039452,15]
[420370405,1776041594975,-500.0,0.00039452,15]
[420370406,1776041594989,-1778.75,0.00039452,15]
[420370407,1776041594998,-1153.37,0.00039452,15]
[420370408,1776041595022,-500.0,0.00039452,15]
[420370409,1776041595032,-500.0,0.00039452,15]
[420370410,1776041595042,-1092.35,0.00039452,15]
[420370411,1776041595062,-500.0,0.00039452,15]
[420370412,1776041595078,-500.0,0.00039452,15]
[420370413,1776041595089,-500.0,0.00039452,15]
[420370414,1776041595116,-500.0,0.00039452,15]
[420370415,1776041595135,-1843.04,0.00039452,15]
[420370416,1776041595148,-500.0,0.00039452,15]
[420370417,1776041595158,-500.0,0.00039452,15]
[420370418,1776041595169,-500.0,0.00039452,15]
[420370419,1776041595202,-503.0,0.00039452,15]
[420370420,1776041595212,-500.0,0.00039452,15]
[420370421,1776041595221,-500.0,0.00039452,15]
[420370422,1776041595242,-656.69,0.00039452,15]
[420370423,1776041595263,-500.0,0.00039452,15]
[420370424,1776041595275,-500.0,0.00039452,15]
[420370425,1776041595288,-1937.81,0.00039452,15]
[420370426,1776041595300,-754.33,0.00039452,15]
[420370427,1776041595310,-500.0,0.00039452,15]
[420370428,1776041595322,-1714.04,0.00039452,15]
[420370429,1776041595342,-389.72074036,0.00039452,15]
[420370430,1776041595352,-1292.76,0.00039452,15]
[420370431,1776041595362,-500.0,0.00039452,15]
[420370432,1776041595371,-500.0,0.00039452,15]
[420370433,1776041595386,-1586.56,0.00039452,15]
[420370434,1776041595395,-500.0,0.00039452,15]
[420370435,1776041595405,-500.0,0.00039452,15]
[420370436,1776041595415,-531.5,0.00039452,15]
[420370437,1776041595429,-1395.23,0.00039452,15]
[420370438,1776041595439,-1508.28,0.00039452,15]
[420370439,1776041595449,-1383.28,0.00039452,15]
[420370440,1776041595466,-500.0,0.00039452,15]
[420370441,1776041595476,-1557.25,0.00039452,15]
[420370442,1776041595488,-521.36,0.00039452,15]
[420370443,1776041595502,-500.0,0.00039452,15]
[420370444,1776041595514,-1577.69,0.00039452,15]
[420370445,1776041595530,-2158.93,0.00039452,15]
[420370446,1776041595542,-933.09,0.00039452,15]
[420370447,1776041595553,-805.64,0.00039452,15]
[420370448,1776041595569,-551.92,0.00039452,15]
[420370449,1776041595879,-781.58,0.00039452,15]
[420370450,1776041595955,-500.0,0.00039452,15]
[420370451,1776041595977,-1216.47,0.00039452,15]
[420370452,1776041595987,-500.0,0.00039452,15]
[420370453,1776041595996,-500.0,0.00039452,15]
[420370454,1776041596017,-500.0,0.00039452,15]
[420370455,1776041596027,-500.0,0.00039452,15]
[420370456,1776041596038,-1203.91,0.00039452,15]
[420370457,1776041596052,-665.94,0.00039452,15]
[420370458,1776041596066,-500.0,0.00039452,15]
[420370459,1776041596091,-1346.41,0.00039452,15]
[420370460,1776041596100,-567.51362139,0.00039452,15]
[420370461,1776041596110,-500.0,0.00039452,15]
[420370462,1776041596138,-500.0,0.00039452,15]
[420370463,1776041596147,-3502.27,0.00039452,15]
[420370464,1776041596163,-1160.63,0.00039452,15]
[420370465,1776041596192,-500.0,0.00039452,15]
[420370466,1776041596225,-500.0,0.00039452,15]
[420370467,1776041596235,-2492.69,0.00039452,15]
[420370468,1776041596255,-812.32,0.00039452,15]
[420370469,1776041596281,-500.0,0.00039452,15]
[420370470,1776041596291,-500.0,0.00039452,15]
[420370471,1776041596310,-713.05,0.00039452,15]
[420370472,1776041596339,-2542.2,0.00039452,15]
[420370473,1776041596361,-500.0,0.00039452,15]
[420370474,1776041596371,-513.27,0.00039452,15]
[420370475,1776041596390,-500.0,0.00039452,15]
[420370476,1776041596403,-857.17,0.00039452,15]
[420370477,1776041596430,-767.53,0.00039452,15]
[420370478,1776041596457,-1949.22,0.00039452,15]
[420370479,1776041596467,-500.0,0.00039452,15]
[420370480,1776041596487,-500.0,0.00039452,15]
[420370481,1776041596499,-2000.83,0.00039452,15]
[420370482,1776041596508,-1020.08,0.00039452,15]
[420370483,1776041596534,-671.18,0.00039452,15]
[420370484,1776041596543,-500.0,0.00039452,15]
[420370485,1776041596554,-500.0,0.00039452,15]
[420370486,1776041596578,-1814.36,0.00039452,15]
[420370487,1776041596587,-500.0,0.00039452,15]
[420370488,1776041596598,-500.0,0.00039452,15]
[420370489,1776041596624,-2557.75,0.00039452,15]
[420370490,1776041596634,-1239.9,0.00039452,15]
[420370491,1776041596645,-500.0,0.00039452,15]
[420370492,1776041596669,-1024.03,0.00039452,15]
[420370493,1776041596679,-1654.08,0.00039452,15]
[420370494,1776041596691,-2033.34,0.00039452,15]
[420370495,1776041596710,-500.0,0.00039452,15]
[420370496,1776041596725,-415.70856578,0.00039452,15]
[420370497,1776041596737,-500.0,0.00039452,15]
[420370498,1776041596748,-500.0,0.00039452,15]
[420370499,1776041596758,-1913.26,0.00039452,15]
[420370500,1776041596774,-500.0,0.00039452,15]
[420370501,1776041596785,-2148.07,0.00039452,15]
[420370502,1776041596797,-1846.32,0.00039452,15]
[420370503,1776041596811,-500.0,0.00039452,15]
[420370504,1776041596833,-500.0,0.00039452,15]
[420370505,1776041596852,-1029.57,0.00039452,15]
[420370506,1776041596878,-500.0,0.00039452,15]
[420370507,1776041596894,-515.85,0.00039452,15]
[420370508,1776041596921,-667.8,0.00039452,15]
[420370509,1776041596952,-1978.02,0.00039452,15]
[420370510,1776041596962,-500.0,0.00039452,15]
[420370511,1776041596974,-500.0,0.00039452,15]
[420370512,1776041596999,-500.0,0.00039452,15]
[420370513,1776041597009,-500.0,0.00039452,15]
[420370514,1776041597021,-500.0,0.00039452,15]
[420370515,1776041597047,-2182.18,0.00039452,15]
[420370516,1776041597056,-500.0,0.00039452,15]
[420370517,1776041597075,-2335.03,0.00039452,15]
[420370518,1776041597110,-1212.24,0.00039452,15]
[420370519,1776041597121,-500.0,0.00039452,15]
[420370520,1776041597149,-1195.42,0.00039452,15]
[420370521,1776041597161,-500.0,0.00039452,15]
[420370522,1776041597178,-1419.56,0.00039452,15]
[420370523,1776041597202,-500.0,0.00039452,15]
[420370524,1776041597236,-1692.69,0.00039452,15]
[420370525,1776041597252,-606.26,0.00039452,15]
[420370526,1776041597283,-500.0,0.00039452,15]
[420370527,1776041597293,-500.0,0.00039452,15]
[420370528,1776041597319,-500.0,0.00039452,15]
[420370529,1776041597331,-884.21,0.00039452,15]
[420370530,1776041597349,-500.0,0.00039452,15]
[420370531,1776041597382,-500.0,0.00039452,15]
[420370532,1776041597392,-500.0,0.00039452,15]
[420370533,1776041597419,-1649.72,0.00039452,15]
[420370534,1776041597429,-500.0,0.00039452,15]
[420370535,1776041597438,-621.97,0.00039452,15]
[420370536,1776041597472,-559.48,0.00039452,15]
[420370537,1776041597482,-1537.45,0.00039452,15]
[420370538,1776041597496,-500.0,0.00039452,15]
[420370539,1776041597522,-1130.48,0.00039452,15]
[420370540,1776041597532,-500.0,0.00039452,15]
[420370541,1776041597541,-500.0,0.00039452,15]
[420370542,1776041597564,-870.95,0.00039452,15]
[420370543,1776041597574,-500.0,0.00039452,15]
[420370544,1776041597589,-500.0,0.00039452,15]
[420370545,1776041597617,-500.0,0.00039452,15]
[420370546,1776041597626,-706.59,0.00039452,15]
[420370547,1776041597639,-687.5,0.00039452,15]
[420370548,1776041597654,-629.42,0.00039452,15]
[420370549,1776041597664,-500.0,0.00039452,15]
[420370550,1776041597674,-500.0,0.00039452,15]
[420370551,1776041597687,-1620.29,0.00039452,15]
[420370552,1776041597702,-2507.84,0.00039452,15]
[420370553,1776041597712,-730.08,0.00039452,15]
[420370554,1776041597727,-500.0,0.00039452,15]
[420370555,1776041597741,-500.0,0.00039452,15]
[420370556,1776041597751,-1791.97,0.00039452,15]
[420370557,1776041597762,-620.62,0.00039452,15]
[420370558,1776041597773,-5639.6,0.00039452,15]
[420370559,1776041597789,-500.0,0.00039452,15]
[420370560,1776041597808,-595.83,0.00039452,15]
[420370561,1776041597819,-500.0,0.00039452,15]
[420370562,1776041597829,-532.56,0.00039452,15]
[420370563,1776041597843,-500.0,0.00039452,15]
[420370564,1776041597854,-791.1,0.00039452,15]
[420370565,1776041597864,-1272.74,0.00039452,15]
[420370566,1776041597874,-689.29,0.00039452,15]
[420370567,1776041597892,-500.0,0.00039452,15]
[420370568,1776041597902,-507.04,0.00039452,15]
[420370569,1776041597912,-523.50386231,0.00039452,15]
[420370570,1776041597922,-774.01,0.00039452,15]
[420370571,1776041597938,-1988.49,0.00039452,15]
[420370572,1776041597949,-500.0,0.00039452,15]
[420370573,1776041597959,-1059.84,0.00039452,15]
[420370574,1776041597972,-500.0,0.00039452,15]